[Event "Early-Titled-Tuesday-Blitz-May-28-2024"]
[Site "Chess.com"]
[Date "2024.05.28"]
[Round "8"]
[White "topce"]
[Black "RantomOpening"]
[Result "1/2-1/2"]
[WhiteElo "2412"]
[BlackElo "2556"]
[TimeControl "180+1"]
[EndTime "9:31:21 PDT"]
[Termination "Game drawn by repetition"]

1. e4 {[%clk 0:03:00.9]} 1... e5 {[%clk 0:02:49.9]} 2. Nf3 {[%clk 0:03:00]} 2...
Nc6 {[%clk 0:02:49.3]} 3. Nc3 {[%clk 0:03:00.5]} 3... Nf6 {[%clk 0:02:49.1]} 4.
Bb5 {[%clk 0:02:59.9]} 4... Bd6 {[%clk 0:02:49.2]} 5. O-O {[%clk 0:02:48.8]}
5... O-O {[%clk 0:02:48.9]} 6. Bxc6 {[%clk 0:02:48.1]} 6... dxc6 {[%clk
0:02:48.6]} 7. h3 {[%clk 0:02:48.3]} 7... b5 {[%clk 0:02:43.8]} 8. d3 {[%clk
0:02:48.2]} 8... a6 {[%clk 0:02:41.5]} 9. Ne2 {[%clk 0:02:43]} 9... h6 {[%clk
0:02:34.2]} 10. Ng3 {[%clk 0:02:39.5]} 10... Be6 {[%clk 0:02:33.8]} 11. b3
{[%clk 0:02:35]} 11... Nd7 {[%clk 0:02:31.1]} 12. Nh2 {[%clk 0:02:29.9]} 12...
Qh4 {[%clk 0:02:29.1]} 13. Qf3 {[%clk 0:02:22.2]} 13... Nf6 {[%clk 0:02:18.9]}
14. Bb2 {[%clk 0:02:14.7]} 14... Qf4 {[%clk 0:02:09.1]} 15. Rae1 {[%clk
0:01:47.3]} 15... Qxf3 {[%clk 0:02:02.3]} 16. Nxf3 {[%clk 0:01:48.2]} 16... Nd7
{[%clk 0:02:01.6]} 17. d4 {[%clk 0:01:28.7]} 17... exd4 {[%clk 0:01:49.4]} 18.
Nxd4 {[%clk 0:01:29.6]} 18... Be5 {[%clk 0:01:39.3]} 19. f4 {[%clk 0:01:27.6]}
19... Bxd4+ {[%clk 0:01:37.1]} 20. Bxd4 {[%clk 0:01:28.5]} 20... f6 {[%clk
0:01:33.9]} 21. f5 {[%clk 0:01:22.7]} 21... Bf7 {[%clk 0:01:33.2]} 22. Ne2
{[%clk 0:01:18.9]} 22... Rfe8 {[%clk 0:01:30.6]} 23. Nf4 {[%clk 0:01:18.5]}
23... Ne5 {[%clk 0:01:27.3]} 24. Bxe5 {[%clk 0:01:12.9]} 24... Rxe5 {[%clk
0:01:28.2]} 25. Nd3 {[%clk 0:01:06.5]} 25... Re7 {[%clk 0:01:27.6]} 26. Kf2
{[%clk 0:01:03.3]} 26... a5 {[%clk 0:01:27.1]} 27. Kf3 {[%clk 0:00:57.7]} 27...
a4 {[%clk 0:01:24.3]} 28. g4 {[%clk 0:00:49]} 28... axb3 {[%clk 0:01:23.8]} 29.
axb3 {[%clk 0:00:49.8]} 29... Rae8 {[%clk 0:01:10.2]} 30. Rg1 {[%clk 0:00:29.8]}
30... g5 {[%clk 0:01:02.5]} 31. Nc5 {[%clk 0:00:24]} 31... Kg7 {[%clk
0:00:58.8]} 32. Rd1 {[%clk 0:00:21.5]} 32... Re5 {[%clk 0:00:57]} 33. b4 {[%clk
0:00:20.9]} 33... h5 {[%clk 0:00:30.1]} 34. Rd7 {[%clk 0:00:19.4]} 34... hxg4+
{[%clk 0:00:28.3]} 35. hxg4 {[%clk 0:00:20.3]} 35... R5e7 {[%clk 0:00:23.8]} 36.
Rgd1 {[%clk 0:00:19.8]} 36... Kf8 {[%clk 0:00:11.7]} 37. R1d4 {[%clk 0:00:17.1]}
37... Rxd7 {[%clk 0:00:10.1]} 38. Nxd7+ {[%clk 0:00:15.5]} 38... Ke7 {[%clk
0:00:08.8]} 39. Nc5 {[%clk 0:00:16.4]} 39... Rd8 {[%clk 0:00:08.6]} 40. Rxd8
{[%clk 0:00:16.3]} 40... Kxd8 {[%clk 0:00:09.5]} 41. Ke3 {[%clk 0:00:16.5]}
41... Ke7 {[%clk 0:00:09.9]} 42. Kd4 {[%clk 0:00:16.8]} 42... Bc4 {[%clk
0:00:09.5]} 43. e5 {[%clk 0:00:14]} 43... Be2 {[%clk 0:00:08.2]} 44. Ne4 {[%clk
0:00:10.6]} 44... fxe5+ {[%clk 0:00:06.5]} 45. Kxe5 {[%clk 0:00:10.2]} 45...
Bxg4 {[%clk 0:00:05.5]} 46. f6+ {[%clk 0:00:10.9]} 46... Kf8 {[%clk 0:00:05]}
47. Nxg5 {[%clk 0:00:11.6]} 47... c5 {[%clk 0:00:05.2]} 48. c3 {[%clk
0:00:11.7]} 48... cxb4 {[%clk 0:00:05.2]} 49. cxb4 {[%clk 0:00:12.6]} 49... Bd7
{[%clk 0:00:03]} 50. Ne4 {[%clk 0:00:12.4]} 50... Bc6 {[%clk 0:00:02.4]} 51. Nc5
{[%clk 0:00:12.4]} 51... Kf7 {[%clk 0:00:02.6]} 52. Ne6 {[%clk 0:00:12.3]} 52...
Bf3 {[%clk 0:00:01.6]} 53. Nxc7 {[%clk 0:00:12.3]} 53... Be2 {[%clk 0:00:01.8]}
54. Ne6 {[%clk 0:00:12.5]} 54... Bf1 {[%clk 0:00:02.3]} 55. Ng5+ {[%clk
0:00:12.8]} 55... Kf8 {[%clk 0:00:03.1]} 56. Ne4 {[%clk 0:00:13.2]} 56... Bc4
{[%clk 0:00:03.4]} 57. Nd6 {[%clk 0:00:13.1]} 57... Bf1 {[%clk 0:00:03.9]} 58.
Kd4 {[%clk 0:00:13.3]} 58... Be2 {[%clk 0:00:03.5]} 59. Kc5 {[%clk 0:00:13.7]}
59... Bf1 {[%clk 0:00:03.6]} 60. Kc6 {[%clk 0:00:14]} 60... Be2 {[%clk
0:00:03.5]} 61. Kc5 {[%clk 0:00:14.5]} 61... Bf1 {[%clk 0:00:03.7]} 62. Kd5
{[%clk 0:00:10.2]} 62... Be2 {[%clk 0:00:03.8]} 63. Ke5 {[%clk 0:00:11.1]} 63...
Bf1 {[%clk 0:00:04]} 64. Ne4 {[%clk 0:00:10.8]} 64... Be2 {[%clk 0:00:04]} 65.
Ng5 {[%clk 0:00:11.7]} 65... Bc4 {[%clk 0:00:03.2]} 66. Kf5 {[%clk 0:00:11.2]}
66... Bd3+ {[%clk 0:00:03.3]} 67. Ke5 {[%clk 0:00:11.5]} 67... Bc4 {[%clk
0:00:03.2]} 68. Kd6 {[%clk 0:00:12]} 68... Bf1 {[%clk 0:00:03.4]} 69. Ke5 {[%clk
0:00:12.1]} 69... Bc4 {[%clk 0:00:03.5]} 1/2-1/2

[Event "Early-Titled-Tuesday-Blitz-May-28-2024"]
[Site "Chess.com"]
[Date "2024.05.28"]
[Round "8"]
[White "HouseOfDurin"]
[Black "yobdc"]
[Result "0-1"]
[WhiteElo "2276"]
[BlackElo "2530"]
[TimeControl "180+1"]
[EndTime "9:31:24 PDT"]
[Termination "yobdc won by resignation"]

1. d4 {[%clk 0:03:00.9]} 1... Nf6 {[%clk 0:02:59.5]} 2. Bg5 {[%clk 0:03:01.4]}
2... g6 {[%clk 0:02:48]} 3. Bxf6 {[%clk 0:03:01]} 3... exf6 {[%clk 0:02:48.5]}
4. c4 {[%clk 0:03:01.2]} 4... d5 {[%clk 0:02:40.2]} 5. e3 {[%clk 0:02:59.6]}
5... dxc4 {[%clk 0:02:25.5]} 6. Bxc4 {[%clk 0:03:00.5]} 6... Bd6 {[%clk
0:02:25.5]} 7. Nc3 {[%clk 0:03:00.1]} 7... O-O {[%clk 0:02:21.4]} 8. Bd5 {[%clk
0:02:57.1]} 8... c6 {[%clk 0:02:20.2]} 9. Bf3 {[%clk 0:02:56.4]} 9... Re8 {[%clk
0:02:15.9]} 10. Nge2 {[%clk 0:02:55.8]} 10... Nd7 {[%clk 0:02:14.3]} 11. O-O
{[%clk 0:02:53.7]} 11... f5 {[%clk 0:02:14.7]} 12. g3 {[%clk 0:02:53.3]} 12...
Nf6 {[%clk 0:02:14.8]} 13. Qc2 {[%clk 0:02:51.6]} 13... h5 {[%clk 0:02:13.4]}
14. h4 {[%clk 0:02:50.9]} 14... Be6 {[%clk 0:02:05.5]} 15. Rfd1 {[%clk
0:02:46.9]} 15... Qe7 {[%clk 0:02:02.8]} 16. Kg2 {[%clk 0:02:45.8]} 16... Rad8
{[%clk 0:02:02.3]} 17. Rac1 {[%clk 0:02:43.7]} 17... Bb8 {[%clk 0:02:02.1]} 18.
a3 {[%clk 0:02:39.5]} 18... Ng4 {[%clk 0:01:58.4]} 19. Bxg4 {[%clk 0:02:38.1]}
19... hxg4 {[%clk 0:01:53.8]} 20. Nf4 {[%clk 0:02:27.8]} 20... Bc8 {[%clk
0:01:52.8]} 21. d5 {[%clk 0:02:22.3]} 21... Qf6 {[%clk 0:01:38.3]} 22. dxc6
{[%clk 0:02:11.4]} 22... Qxc6+ {[%clk 0:01:35.4]} 23. Ncd5 {[%clk 0:02:00.6]}
23... Bxf4 {[%clk 0:01:20.2]} 24. Qxc6 {[%clk 0:01:48.8]} 24... bxc6 {[%clk
0:01:12.9]} 25. Nf6+ {[%clk 0:01:43.8]} 25... Kf8 {[%clk 0:01:07.1]} 26. Nxe8
{[%clk 0:01:40.3]} 26... Rxe8 {[%clk 0:00:17.3]} 27. gxf4 {[%clk 0:01:32.4]}
27... Ba6 {[%clk 0:00:12.8]} 28. Rd2 {[%clk 0:01:27.1]} 28... Re7 {[%clk
0:00:05.3]} 29. b4 {[%clk 0:01:26.7]} 29... Bb5 {[%clk 0:00:05.3]} 30. Kg3
{[%clk 0:01:23.2]} 30... Kg7 {[%clk 0:00:05.2]} 31. Rd6 {[%clk 0:01:12.9]} 31...
a5 {[%clk 0:00:04.9]} 32. bxa5 {[%clk 0:01:01.8]} 32... Ra7 {[%clk 0:00:04.8]}
33. Rdxc6 {[%clk 0:00:57.6]} 33... Bxc6 {[%clk 0:00:03.6]} 34. Rxc6 {[%clk
0:00:58.5]} 34... Rxa5 {[%clk 0:00:04.2]} 35. Rc3 {[%clk 0:00:58.8]} 35... Ra4
{[%clk 0:00:04.6]} 36. f3 {[%clk 0:00:58.4]} 36... gxf3 {[%clk 0:00:04.6]} 37.
Kxf3 {[%clk 0:00:58.6]} 37... Kh6 {[%clk 0:00:05.5]} 38. Kg3 {[%clk 0:00:56.1]}
38... Kg7 {[%clk 0:00:05.8]} 39. Kf3 {[%clk 0:00:55.5]} 39... Kh6 {[%clk
0:00:06]} 40. Kf2 {[%clk 0:00:51.4]} 40... Kg7 {[%clk 0:00:05.9]} 41. Ke2 {[%clk
0:00:47.1]} 41... Kh6 {[%clk 0:00:06.3]} 42. Kd2 {[%clk 0:00:47.3]} 42... Kh5
{[%clk 0:00:06.7]} 43. Kc2 {[%clk 0:00:47.7]} 43... Kxh4 {[%clk 0:00:07.1]} 44.
Kb3 {[%clk 0:00:48]} 44... Ra8 {[%clk 0:00:06.8]} 45. a4 {[%clk 0:00:43.8]}
45... f6 {[%clk 0:00:07]} 46. Rc6 {[%clk 0:00:21.8]} 46... Re8 {[%clk
0:00:05.9]} 47. Rc3 {[%clk 0:00:16.9]} 47... g5 {[%clk 0:00:05.8]} 48. fxg5
{[%clk 0:00:16.3]} 48... fxg5 {[%clk 0:00:06.3]} 49. a5 {[%clk 0:00:16.4]} 49...
g4 {[%clk 0:00:06.6]} 50. Kb4 {[%clk 0:00:09.2]} 50... g3 {[%clk 0:00:06.9]} 51.
Rc4+ {[%clk 0:00:06.1]} 51... Kh3 {[%clk 0:00:06.9]} 52. Rc1 {[%clk 0:00:04.9]}
52... Rxe3 {[%clk 0:00:04.7]} 53. a6 {[%clk 0:00:05.3]} 53... Re8 {[%clk
0:00:04.4]} 54. Kb5 {[%clk 0:00:05.6]} 54... f4 {[%clk 0:00:04.8]} 55. Kb6
{[%clk 0:00:05.8]} 55... g2 {[%clk 0:00:04.9]} 56. Kb7 {[%clk 0:00:05.8]} 56...
f3 {[%clk 0:00:02.3]} 57. a7 {[%clk 0:00:06.4]} 57... f2 {[%clk 0:00:01.9]} 58.
Rc8 {[%clk 0:00:06]} 58... Re7+ {[%clk 0:00:02.1]} 59. Rc7 {[%clk 0:00:05]}
59... Rxc7+ {[%clk 0:00:01.8]} 60. Kxc7 {[%clk 0:00:05.8]} 60... g1=Q {[%clk
0:00:02]} 61. a8=Q {[%clk 0:00:06.2]} 61... f1=Q {[%clk 0:00:02.4]} 62. Qh8+
{[%clk 0:00:06.5]} 62... Kg2 {[%clk 0:00:02.6]} 63. Qg7+ {[%clk 0:00:06.6]}
63... Kf2 {[%clk 0:00:02.7]} 64. Qf6+ {[%clk 0:00:06.7]} 64... Ke1 {[%clk
0:00:03.1]} 65. Qc3+ {[%clk 0:00:06.5]} 65... Ke2 {[%clk 0:00:02.8]} 66. Qe5+
{[%clk 0:00:05.6]} 66... Qe3 {[%clk 0:00:02.4]} 67. Qb2+ {[%clk 0:00:05]} 67...
Kf3 {[%clk 0:00:02.3]} 68. Qf6+ {[%clk 0:00:04.7]} 68... Qf4+ {[%clk 0:00:02.6]}
69. Qxf4+ {[%clk 0:00:04.6]} 69... Kxf4 {[%clk 0:00:03.5]} 0-1

[Event "Early-Titled-Tuesday-Blitz-May-28-2024"]
[Site "Chess.com"]
[Date "2024.05.28"]
[Round "8"]
[White "Timerkhanov"]
[Black "DominguezOnYoutube"]
[Result "0-1"]
[WhiteElo "2747"]
[BlackElo "2988"]
[TimeControl "180+1"]
[EndTime "9:31:27 PDT"]
[Termination "DominguezOnYoutube won by resignation"]

1. d4 {[%clk 0:03:00.9]} 1... Nf6 {[%clk 0:02:59.3]} 2. Bg5 {[%clk 0:03:00.7]}
2... d5 {[%clk 0:02:58.8]} 3. Nd2 {[%clk 0:03:00.9]} 3... c6 {[%clk 0:02:55.1]}
4. Bxf6 {[%clk 0:02:58]} 4... exf6 {[%clk 0:02:54.9]} 5. e3 {[%clk 0:02:58.3]}
5... f5 {[%clk 0:02:54.6]} 6. g3 {[%clk 0:02:56.8]} 6... Nd7 {[%clk 0:02:54.2]}
7. Bg2 {[%clk 0:02:56.9]} 7... Nf6 {[%clk 0:02:54.6]} 8. Ne2 {[%clk 0:02:56.2]}
8... Bd6 {[%clk 0:02:54.2]} 9. c4 {[%clk 0:02:55.3]} 9... dxc4 {[%clk
0:02:54.2]} 10. Nxc4 {[%clk 0:02:56.2]} 10... Bc7 {[%clk 0:02:54.6]} 11. Qc2
{[%clk 0:02:39.9]} 11... g6 {[%clk 0:02:51.3]} 12. h4 {[%clk 0:02:38.6]} 12...
h5 {[%clk 0:02:51.1]} 13. Rc1 {[%clk 0:02:31]} 13... Qe7 {[%clk 0:02:37.9]} 14.
Nf4 {[%clk 0:02:28.2]} 14... O-O {[%clk 0:02:16.8]} 15. Qb3 {[%clk 0:02:24.1]}
15... Rd8 {[%clk 0:01:43.1]} 16. O-O {[%clk 0:02:03]} 16... Bxf4 {[%clk
0:01:41.5]} 17. exf4 {[%clk 0:02:02.8]} 17... Be6 {[%clk 0:01:27.9]} 18. Qc3
{[%clk 0:01:54.1]} 18... Bxc4 {[%clk 0:01:11.4]} 19. Qxc4 {[%clk 0:01:53.9]}
19... Rd6 {[%clk 0:01:11.8]} 20. Rfe1 {[%clk 0:01:30.8]} 20... Qd7 {[%clk
0:01:11.4]} 21. Rcd1 {[%clk 0:01:31.3]} 21... Rd8 {[%clk 0:01:10.5]} 22. Qb3
{[%clk 0:01:29.5]} 22... Nd5 {[%clk 0:01:05]} 23. Re5 {[%clk 0:01:27.3]} 23...
Nb6 {[%clk 0:00:32.5]} 24. Rde1 {[%clk 0:01:25.5]} 24... Nc8 {[%clk 0:00:33]}
25. d5 {[%clk 0:00:19.5]} 25... cxd5 {[%clk 0:00:32.2]} 26. Bxd5 {[%clk
0:00:16.5]} 26... Rxd5 {[%clk 0:00:24.4]} 27. Rxd5 {[%clk 0:00:16]} 27... Qxd5
{[%clk 0:00:25]} 28. Re8+ {[%clk 0:00:16.2]} 28... Kg7 {[%clk 0:00:21.5]} 29.
Qxd5 {[%clk 0:00:17.1]} 29... Rxd5 {[%clk 0:00:21.4]} 30. Rxc8 {[%clk
0:00:17.5]} 30... Rd2 {[%clk 0:00:21.8]} 31. b3 {[%clk 0:00:12.2]} 31... Rxa2
{[%clk 0:00:21.7]} 32. Rc7 {[%clk 0:00:12.8]} 32... b5 {[%clk 0:00:19.5]} 33.
Rb7 {[%clk 0:00:11.2]} 33... a6 {[%clk 0:00:19.8]} 34. Rb6 {[%clk 0:00:11.6]}
34... Ra3 {[%clk 0:00:18.1]} 35. Kg2 {[%clk 0:00:10.9]} 35... Rxb3 {[%clk
0:00:18]} 36. Rxa6 {[%clk 0:00:11]} 36... Rd3 {[%clk 0:00:12.7]} 37. Rb6 {[%clk
0:00:10.7]} 37... Rd5 {[%clk 0:00:13.1]} 38. Kf3 {[%clk 0:00:10.4]} 38... Kf8
{[%clk 0:00:12.9]} 39. Ke3 {[%clk 0:00:10.6]} 39... Ke7 {[%clk 0:00:12.7]} 40.
Rb7+ {[%clk 0:00:11.1]} 40... Ke6 {[%clk 0:00:11.7]} 41. Rb6+ {[%clk 0:00:11.4]}
41... Kd7 {[%clk 0:00:11.9]} 42. Rb7+ {[%clk 0:00:11.6]} 42... Kc6 {[%clk
0:00:12]} 43. Rb8 {[%clk 0:00:07.7]} 43... Kc5 {[%clk 0:00:10.9]} 44. Rc8+
{[%clk 0:00:05.4]} 44... Kb4 {[%clk 0:00:10.7]} 45. Rc7 {[%clk 0:00:06.1]} 45...
Rd6 {[%clk 0:00:05.4]} 46. Rxf7 {[%clk 0:00:05.3]} 46... Kb3 {[%clk 0:00:04.8]}
47. Rb7 {[%clk 0:00:03.6]} 47... b4 {[%clk 0:00:04.9]} 48. f3 {[%clk 0:00:04.3]}
48... Kc3 {[%clk 0:00:04.6]} 49. g4 {[%clk 0:00:04.4]} 49... Re6+ {[%clk
0:00:03.9]} 50. Kf2 {[%clk 0:00:04.3]} 50... b3 {[%clk 0:00:03.9]} 51. gxf5
{[%clk 0:00:01.5]} 51... gxf5 {[%clk 0:00:04]} 52. Rc7+ {[%clk 0:00:02.4]} 52...
Kb4 {[%clk 0:00:01.1]} 53. Rb7+ {[%clk 0:00:03.3]} 53... Kc4 {[%clk 0:00:01.5]}
54. Rc7+ {[%clk 0:00:03.8]} 54... Kb5 {[%clk 0:00:02]} 55. Rb7+ {[%clk
0:00:04.7]} 55... Rb6 {[%clk 0:00:02.1]} 56. Rd7 {[%clk 0:00:04]} 56... b2
{[%clk 0:00:02.3]} 57. Rd1 {[%clk 0:00:04.9]} 57... Kc4 {[%clk 0:00:02.5]} 58.
Ke3 {[%clk 0:00:05.4]} 58... Kc3 {[%clk 0:00:02.9]} 59. Rd3+ {[%clk 0:00:04.5]}
59... Kc2 {[%clk 0:00:02.7]} 60. Rd2+ {[%clk 0:00:05.1]} 60... Kb3 {[%clk
0:00:03.2]} 61. Rd1 {[%clk 0:00:05.3]} 61... Rc6 {[%clk 0:00:02.9]} 62. Rd8
{[%clk 0:00:03.2]} 62... Rc3+ {[%clk 0:00:02.9]} 63. Kd4 {[%clk 0:00:02.7]}
63... Rc4+ {[%clk 0:00:03.3]} 64. Kd5 {[%clk 0:00:02.7]} 64... Rb4 {[%clk
0:00:03.8]} 65. Ke5 {[%clk 0:00:02]} 65... b1=Q {[%clk 0:00:04.2]} 66. Kf6
{[%clk 0:00:02.9]} 66... Ka4 {[%clk 0:00:04.5]} 67. Ra8+ {[%clk 0:00:02.8]}
67... Kb5 {[%clk 0:00:05.2]} 68. Rb8+ {[%clk 0:00:03.2]} 68... Kc6 {[%clk
0:00:05.8]} 69. Rc8+ {[%clk 0:00:04.1]} 69... Kd7 {[%clk 0:00:05.3]} 70. Re8
{[%clk 0:00:05]} 70... Rb6+ {[%clk 0:00:05.2]} 0-1

[Event "Early-Titled-Tuesday-Blitz-May-28-2024"]
[Site "Chess.com"]
[Date "2024.05.28"]
[Round "8"]
[White "Semetey"]
[Black "chessburger_tv"]
[Result "1/2-1/2"]
[WhiteElo "2532"]
[BlackElo "2392"]
[TimeControl "180+1"]
[EndTime "9:31:29 PDT"]
[Termination "Game drawn by stalemate"]

1. Nc3 {[%clk 0:02:51.4]} 1... b5 {[%clk 0:02:56.2]} 2. Nxb5 {[%clk 0:02:50.6]}
2... Nf6 {[%clk 0:02:53.8]} 3. d4 {[%clk 0:02:49.3]} 3... g6 {[%clk 0:02:48.7]}
4. Nf3 {[%clk 0:02:47.8]} 4... Bg7 {[%clk 0:02:49]} 5. Nc3 {[%clk 0:02:45.1]}
5... O-O {[%clk 0:02:48.4]} 6. Bf4 {[%clk 0:02:43.8]} 6... Bb7 {[%clk
0:02:45.8]} 7. e3 {[%clk 0:02:43.6]} 7... d6 {[%clk 0:02:40.8]} 8. Bc4 {[%clk
0:02:41.7]} 8... Nbd7 {[%clk 0:02:39]} 9. O-O {[%clk 0:02:41.6]} 9... Qb8 {[%clk
0:02:25.9]} 10. Bb3 {[%clk 0:02:39.4]} 10... a5 {[%clk 0:02:20.3]} 11. a4 {[%clk
0:02:38]} 11... Re8 {[%clk 0:02:17]} 12. h3 {[%clk 0:02:37]} 12... c5 {[%clk
0:02:14.5]} 13. Bh2 {[%clk 0:02:33.6]} 13... Ba6 {[%clk 0:02:06.4]} 14. Re1
{[%clk 0:02:22.2]} 14... c4 {[%clk 0:02:05.5]} 15. Ba2 {[%clk 0:02:17.8]} 15...
Qxb2 {[%clk 0:02:03.5]} 16. Qd2 {[%clk 0:02:17.8]} 16... Qb7 {[%clk 0:01:33.3]}
17. e4 {[%clk 0:02:15.1]} 17... Rac8 {[%clk 0:01:26.5]} 18. Rab1 {[%clk
0:02:10.8]} 18... Qa8 {[%clk 0:01:25.2]} 19. e5 {[%clk 0:02:06.2]} 19... Nd5
{[%clk 0:01:23.4]} 20. exd6 {[%clk 0:02:04.1]} 20... exd6 {[%clk 0:01:24.3]} 21.
Bxd6 {[%clk 0:01:58.8]} 21... Qc6 {[%clk 0:01:20.7]} 22. Rxe8+ {[%clk
0:01:10.8]} 22... Rxe8 {[%clk 0:01:21.6]} 23. Bg3 {[%clk 0:01:04.7]} 23... N7f6
{[%clk 0:01:18.6]} 24. Nb5 {[%clk 0:01:02.9]} 24... Ne4 {[%clk 0:01:15.5]} 25.
Qxa5 {[%clk 0:01:02.9]} 25... Nxg3 {[%clk 0:01:12.1]} 26. fxg3 {[%clk
0:01:03.8]} 26... Bf6 {[%clk 0:00:58.4]} 27. Bxc4 {[%clk 0:01:02.4]} 27... Qxc4
{[%clk 0:00:52.5]} 28. Qxa6 {[%clk 0:01:02.6]} 28... Re2 {[%clk 0:00:48]} 29.
Nc7 {[%clk 0:00:51.9]} 29... Qxc2 {[%clk 0:00:36.8]} 30. Nxd5 {[%clk 0:00:52.1]}
30... Bxd4+ {[%clk 0:00:13.1]} 31. Kh1 {[%clk 0:00:51.6]} 31... Qxb1+ {[%clk
0:00:12.4]} 32. Kh2 {[%clk 0:00:49.6]} 32... Qf1 {[%clk 0:00:05.4]} 33. Qa8+
{[%clk 0:00:43.3]} 33... Kg7 {[%clk 0:00:05.4]} 34. Nf4 {[%clk 0:00:43.5]} 34...
Ra2 {[%clk 0:00:03.2]} 35. Nxd4 {[%clk 0:00:42.6]} 35... Qa1 {[%clk 0:00:02.2]}
36. Qe4 {[%clk 0:00:39.6]} 36... Rxa4 {[%clk 0:00:02.3]} 37. Qe5+ {[%clk
0:00:40.1]} 37... Kg8 {[%clk 0:00:03]} 38. Qb8+ {[%clk 0:00:32.3]} 38... Kg7
{[%clk 0:00:03.2]} 39. Qe5+ {[%clk 0:00:30.3]} 39... Kg8 {[%clk 0:00:03.3]} 40.
Qe8+ {[%clk 0:00:30.9]} 40... Kg7 {[%clk 0:00:03.7]} 41. Nde6+ {[%clk
0:00:31.4]} 41... fxe6 {[%clk 0:00:03.5]} 42. Nxe6+ {[%clk 0:00:32.3]} 42... Kf6
{[%clk 0:00:04]} 43. Nf4 {[%clk 0:00:31.4]} 43... Qd1 {[%clk 0:00:02.7]} 44.
Qh8+ {[%clk 0:00:30.1]} 44... Kf7 {[%clk 0:00:02.9]} 45. Qxh7+ {[%clk
0:00:30.4]} 45... Ke8 {[%clk 0:00:03.1]} 46. Qxg6+ {[%clk 0:00:30.8]} 46... Kd7
{[%clk 0:00:02.2]} 47. Qf5+ {[%clk 0:00:29.5]} 47... Kc6 {[%clk 0:00:01]} 48. h4
{[%clk 0:00:29.7]} 48... Kb7 {[%clk 0:00:01.7]} 49. h5 {[%clk 0:00:29.8]} 49...
Ra1 {[%clk 0:00:02.6]} 50. Qd5+ {[%clk 0:00:27.4]} 50... Qxd5 {[%clk 0:00:02.6]}
51. Nxd5 {[%clk 0:00:28.3]} 51... Kc8 {[%clk 0:00:02.6]} 52. g4 {[%clk
0:00:27.5]} 52... Kd7 {[%clk 0:00:02.7]} 53. Kg3 {[%clk 0:00:27.4]} 53... Ke6
{[%clk 0:00:03.2]} 54. Nf4+ {[%clk 0:00:27.8]} 54... Kf7 {[%clk 0:00:03.3]} 55.
Kh4 {[%clk 0:00:28.1]} 55... Ra5 {[%clk 0:00:01.8]} 56. g5 {[%clk 0:00:27.5]}
56... Ra4 {[%clk 0:00:01.7]} 57. g3 {[%clk 0:00:27.9]} 57... Ra1 {[%clk
0:00:01.9]} 58. Kg4 {[%clk 0:00:28.3]} 58... Ra4 {[%clk 0:00:01.4]} 59. h6
{[%clk 0:00:28.6]} 59... Kg8 {[%clk 0:00:01.5]} 60. g6 {[%clk 0:00:28.6]} 60...
Ra5 {[%clk 0:00:01.1]} 61. Kh4 {[%clk 0:00:27.3]} 61... Rb5 {[%clk 0:00:01.2]}
62. g4 {[%clk 0:00:27.6]} 62... Ra5 {[%clk 0:00:01.5]} 63. Ne6 {[%clk
0:00:25.7]} 63... Ra6 {[%clk 0:00:01]} 64. Nf4 {[%clk 0:00:23.4]} 64... Kh8
{[%clk 0:00:01.9]} 65. g5 {[%clk 0:00:21.8]} 65... Ra4 {[%clk 0:00:02.2]} 66.
Kg3 {[%clk 0:00:22]} 66... Rb4 {[%clk 0:00:03]} 67. g7+ {[%clk 0:00:20.3]} 67...
Kh7 {[%clk 0:00:02.9]} 68. g6+ {[%clk 0:00:19.7]} 68... Kg8 {[%clk 0:00:03.6]}
69. Ne6 {[%clk 0:00:19.5]} 69... Rg4+ {[%clk 0:00:04.2]} 70. Kf3 {[%clk
0:00:19.7]} 70... Rg3+ {[%clk 0:00:04.5]} 71. Ke4 {[%clk 0:00:19.8]} 71... Re3+
{[%clk 0:00:04.5]} 72. Kd5 {[%clk 0:00:19.5]} 72... Re5+ {[%clk 0:00:04.6]} 73.
Kd6 {[%clk 0:00:17.9]} 73... Rxe6+ {[%clk 0:00:04.6]} 74. Kxe6 {[%clk
0:00:18.3]} 1/2-1/2